[Event "*** SCC Grand Prix: Titled Tuesday Blitz"]
[Site "Chess.com"]
[Date "2020.07.14"]
[Round "9"]
[White "Ucitelot"]
[Black "ChronicUnhappiness"]
[Result "1-0"]
[WhiteElo "2514"]
[BlackElo "2366"]
[TimeControl "180+1"]
[EndTime "11:44:39 PDT"]
[Termination "Ucitelot won by resignation"]

1. e4 {[%clk 0:03:00.9]} 1... c5 {[%clk 0:02:58.9]} 2. Nf3 {[%clk 0:03:00.2]}
2... Nc6 {[%clk 0:02:58.5]} 3. d4 {[%clk 0:02:59.9]} 3... cxd4 {[%clk
0:02:58.2]} 4. Nxd4 {[%clk 0:03:00.4]} 4... Nf6 {[%clk 0:02:58.7]} 5. Nc3 {[%clk
0:03:00.1]} 5... e5 {[%clk 0:02:59]} 6. Ndb5 {[%clk 0:02:59.4]} 6... d6 {[%clk
0:02:59.3]} 7. Bg5 {[%clk 0:02:59.1]} 7... a6 {[%clk 0:02:59.2]} 8. Na3 {[%clk
0:02:59.2]} 8... b5 {[%clk 0:02:59.4]} 9. Nd5 {[%clk 0:02:59.2]} 9... Be7 {[%clk
0:02:59.2]} 10. Bxf6 {[%clk 0:02:59.4]} 10... Bxf6 {[%clk 0:02:59.4]} 11. c3
{[%clk 0:02:59.9]} 11... Bg5 {[%clk 0:02:59]} 12. Nc2 {[%clk 0:02:59.6]} 12...
O-O {[%clk 0:02:59]} 13. a4 {[%clk 0:02:59.7]} 13... bxa4 {[%clk 0:02:58.8]} 14.
Rxa4 {[%clk 0:03:00.4]} 14... Rb8 {[%clk 0:02:58.8]} 15. b4 {[%clk 0:02:56.4]}
15... a5 {[%clk 0:02:55.9]} 16. b5 {[%clk 0:02:54.8]} 16... Ne7 {[%clk
0:02:55.5]} 17. Nxe7+ {[%clk 0:02:52.5]} 17... Bxe7 {[%clk 0:02:54.3]} 18. Ne3
{[%clk 0:02:51.9]} 18... Qb6 {[%clk 0:02:52.9]} 19. Nd5 {[%clk 0:02:48.7]} 19...
Qd8 {[%clk 0:02:48.3]} 20. Nxe7+ {[%clk 0:02:41.3]} 20... Qxe7 {[%clk
0:02:47.9]} 21. Rxa5 {[%clk 0:02:41.8]} 21... Bb7 {[%clk 0:02:47.2]} 22. Bd3
{[%clk 0:02:40.8]} 22... f5 {[%clk 0:02:46.6]} 23. O-O {[%clk 0:02:36.6]} 23...
Kh8 {[%clk 0:01:58]} 24. Ra7 {[%clk 0:02:27.5]} 24... Qc7 {[%clk 0:01:38.4]} 25.
exf5 {[%clk 0:02:09.8]} 25... Qb6 {[%clk 0:01:38.2]} 26. Qa1 {[%clk 0:01:54.2]}
26... e4 {[%clk 0:01:33.7]} 27. Be2 {[%clk 0:01:43.2]} 27... Rxf5 {[%clk
0:01:27.4]} 28. Qa5 {[%clk 0:01:42.9]} 28... Qc5 {[%clk 0:01:18.2]} 29. Rxb7
{[%clk 0:01:40.3]} 29... Rbf8 {[%clk 0:01:02]} 30. Qc7 {[%clk 0:01:39.9]} 30...
Qe5 {[%clk 0:00:57.1]} 31. Rb8 {[%clk 0:01:39]} 1-0

[Event "*** SCC Grand Prix: Titled Tuesday Blitz"]
[Site "Chess.com"]
[Date "2020.07.14"]
[Round "9"]
[White "ItsCheckM8Mate"]
[Black "dennisodessa"]
[Result "1-0"]
[WhiteElo "2292"]
[BlackElo "2433"]
[TimeControl "180+1"]
[EndTime "11:44:50 PDT"]
[Termination "ItsCheckM8Mate won by checkmate"]

1. e4 {[%clk 0:03:00.9]} 1... e6 {[%clk 0:01:13.1]} 2. d4 {[%clk 0:02:59.4]}
2... d5 {[%clk 0:01:13.8]} 3. Nc3 {[%clk 0:02:59.5]} 3... Nc6 {[%clk 0:01:13.7]}
4. Nf3 {[%clk 0:02:39.9]} 4... Nf6 {[%clk 0:01:13.5]} 5. e5 {[%clk 0:02:34.8]}
5... Ne4 {[%clk 0:01:13.9]} 6. a3 {[%clk 0:02:26.7]} 6... f6 {[%clk 0:01:12]} 7.
exf6 {[%clk 0:02:23.1]} 7... Qxf6 {[%clk 0:01:12.9]} 8. Bd3 {[%clk 0:02:07.7]}
8... Nxc3 {[%clk 0:01:12.5]} 9. bxc3 {[%clk 0:02:07.4]} 9... Bd6 {[%clk
0:01:13.4]} 10. Ng5 {[%clk 0:01:41]} 10... g6 {[%clk 0:01:02.4]} 11. O-O {[%clk
0:01:12.4]} 11... O-O {[%clk 0:01:00.4]} 12. Qg4 {[%clk 0:01:09.6]} 12... Bf4
{[%clk 0:00:59.3]} 13. Nxh7 {[%clk 0:00:56.6]} 13... Kxh7 {[%clk 0:00:58.1]} 14.
Bxf4 {[%clk 0:00:55.5]} 14... Qxf4 {[%clk 0:00:57.1]} 15. Qxg6+ {[%clk
0:00:54.8]} 15... Kh8 {[%clk 0:00:56.3]} 16. Qh7# {[%clk 0:00:55]} 1-0

[Event "*** SCC Grand Prix: Titled Tuesday Blitz"]
[Site "Chess.com"]
[Date "2020.07.14"]
[Round "9"]
[White "tdf98pantani"]
[Black "Chigorinetz"]
[Result "1-0"]
[WhiteElo "2684"]
[BlackElo "2522"]
[TimeControl "180+1"]
[EndTime "11:44:54 PDT"]
[Termination "tdf98pantani won by resignation"]

1. d4 {[%clk 0:03:00.9]} 1... d5 {[%clk 0:02:53.7]} 2. c4 {[%clk 0:03:00.7]}
2... Nc6 {[%clk 0:02:52.8]} 3. cxd5 {[%clk 0:02:55.9]} 3... Qxd5 {[%clk
0:02:51.9]} 4. e3 {[%clk 0:02:56.2]} 4... e5 {[%clk 0:02:51.8]} 5. Nc3 {[%clk
0:02:56.1]} 5... Bb4 {[%clk 0:02:52.2]} 6. a3 {[%clk 0:02:56.5]} 6... Bxc3+
{[%clk 0:02:52.1]} 7. bxc3 {[%clk 0:02:57]} 7... Nf6 {[%clk 0:02:50.8]} 8. Nf3
{[%clk 0:02:55.3]} 8... O-O {[%clk 0:02:42.7]} 9. Be2 {[%clk 0:02:54.4]} 9...
Qa5 {[%clk 0:02:22.4]} 10. Bd2 {[%clk 0:02:40.1]} 10... e4 {[%clk 0:02:21.4]}
11. Ng1 {[%clk 0:02:35.7]} 11... Qg5 {[%clk 0:02:20.8]} 12. Kf1 {[%clk
0:02:15.9]} 12... Be6 {[%clk 0:02:15]} 13. c4 {[%clk 0:02:14.2]} 13... Rad8
{[%clk 0:02:09.3]} 14. h4 {[%clk 0:02:07]} 14... Qf5 {[%clk 0:01:53.9]} 15. Nh3
{[%clk 0:02:05.7]} 15... Ng4 {[%clk 0:01:36.7]} 16. Nf4 {[%clk 0:02:01.9]} 16...
Bc8 {[%clk 0:01:16.8]} 17. Bc3 {[%clk 0:01:55.5]} 17... Nce5 {[%clk 0:01:06.3]}
18. Rh3 {[%clk 0:01:49.4]} 18... h6 {[%clk 0:00:59.5]} 19. Rg3 {[%clk
0:01:48.1]} 19... g5 {[%clk 0:00:57]} 20. hxg5 {[%clk 0:01:47.5]} 20... hxg5
{[%clk 0:00:56.4]} 21. Nh3 {[%clk 0:01:30.1]} 21... f6 {[%clk 0:00:54.9]} 22.
Kg1 {[%clk 0:01:24.9]} 22... Ng6 {[%clk 0:00:51.7]} 23. Bxg4 {[%clk 0:01:24.3]}
1-0

[Event "*** SCC Grand Prix: Titled Tuesday Blitz"]
[Site "Chess.com"]
[Date "2020.07.14"]
[Round "9"]
[White "GaboSalazar2001"]
[Black "Maghalashvili"]
[Result "0-1"]
[WhiteElo "2298"]
[BlackElo "2744"]
[TimeControl "180+1"]
[EndTime "11:44:56 PDT"]
[Termination "Maghalashvili won by resignation"]

1. e4 {[%clk 0:03:00.9]} 1... c5 {[%clk 0:02:45.6]} 2. Nf3 {[%clk 0:03:01.2]}
2... d6 {[%clk 0:02:45.4]} 3. d4 {[%clk 0:03:01.6]} 3... cxd4 {[%clk 0:02:46.3]}
4. Nxd4 {[%clk 0:03:02.4]} 4... Nf6 {[%clk 0:02:46.2]} 5. Nc3 {[%clk 0:03:03.1]}
5... a6 {[%clk 0:02:47.1]} 6. Bc4 {[%clk 0:03:00]} 6... e6 {[%clk 0:02:46.5]} 7.
Be3 {[%clk 0:02:59.7]} 7... b5 {[%clk 0:02:46.1]} 8. Bb3 {[%clk 0:02:58.6]} 8...
Bb7 {[%clk 0:02:45.8]} 9. f4 {[%clk 0:02:55.4]} 9... b4 {[%clk 0:02:45.2]} 10.
Na4 {[%clk 0:02:55]} 10... Nxe4 {[%clk 0:02:44.1]} 11. f5 {[%clk 0:02:39]} 11...
Qh4+ {[%clk 0:02:43.3]} 12. Ke2 {[%clk 0:02:00.3]} 12... e5 {[%clk 0:02:38.7]}
13. Nf3 {[%clk 0:01:56.6]} 13... Qg4 {[%clk 0:02:37.3]} 14. Rg1 {[%clk
0:01:28.5]} 14... Nd7 {[%clk 0:02:36.1]} 15. Bd5 {[%clk 0:01:21.6]} 15... Bxd5
{[%clk 0:02:35.9]} 16. Qxd5 {[%clk 0:01:22.1]} 16... Rc8 {[%clk 0:02:36.8]} 17.
c3 {[%clk 0:01:03.2]} 17... Qxf5 {[%clk 0:02:30.1]} 18. g4 {[%clk 0:00:47.1]}
18... Nxc3+ {[%clk 0:02:20.4]} 19. Nxc3 {[%clk 0:00:39.5]} 19... Qc2+ {[%clk
0:02:18.3]} 20. Qd2 {[%clk 0:00:38.5]} 20... Qxd2+ {[%clk 0:02:17.7]} 21. Kxd2
{[%clk 0:00:39.4]} 21... bxc3+ {[%clk 0:02:18.6]} 22. bxc3 {[%clk 0:00:39.7]}
22... Nf6 {[%clk 0:02:18.3]} 23. Rab1 {[%clk 0:00:34.9]} 23... Ne4+ {[%clk
0:02:17.9]} 24. Kd3 {[%clk 0:00:34.6]} 24... d5 {[%clk 0:02:16.2]} 25. Nxe5
{[%clk 0:00:31.8]} 25... Rxc3+ {[%clk 0:02:11.2]} 26. Ke2 {[%clk 0:00:32.3]}
26... Bd6 {[%clk 0:02:04.9]} 27. Bd4 {[%clk 0:00:30.4]} 27... Rc2+ {[%clk
0:02:03.8]} 28. Kd3 {[%clk 0:00:29.7]} 28... Rxa2 {[%clk 0:02:02.4]} 29. Rb6
{[%clk 0:00:27]} 29... O-O {[%clk 0:01:58.3]} 30. Nd7 {[%clk 0:00:25.7]} 30...
Rd8 {[%clk 0:01:56.4]} 0-1

[Event "*** SCC Grand Prix: Titled Tuesday Blitz"]
[Site "Chess.com"]
[Date "2020.07.14"]
[Round "9"]
[White "dosto07"]
[Black "giantslayer83"]
[Result "0-1"]
[WhiteElo "2237"]
[BlackElo "2721"]
[TimeControl "180+1"]
[EndTime "11:45:08 PDT"]
[Termination "giantslayer83 won by resignation"]

1. e4 {[%clk 0:03:00.9]} 1... c6 {[%clk 0:02:59.7]} 2. d4 {[%clk 0:02:59.5]}
2... d5 {[%clk 0:03:00.6]} 3. Nc3 {[%clk 0:02:59.1]} 3... dxe4 {[%clk
0:02:59.4]} 4. Nxe4 {[%clk 0:02:59]} 4... Bf5 {[%clk 0:03:00.3]} 5. Ng3 {[%clk
0:02:58.6]} 5... Bg6 {[%clk 0:03:00.4]} 6. h4 {[%clk 0:02:59]} 6... h6 {[%clk
0:03:00.4]} 7. Nf3 {[%clk 0:02:58.8]} 7... Nf6 {[%clk 0:03:00.4]} 8. h5 {[%clk
0:02:52.7]} 8... Bh7 {[%clk 0:03:00.1]} 9. Bd3 {[%clk 0:02:51.5]} 9... Bxd3
{[%clk 0:02:59.8]} 10. Qxd3 {[%clk 0:02:51.2]} 10... e6 {[%clk 0:03:00.7]} 11.
Bd2 {[%clk 0:02:50.7]} 11... Be7 {[%clk 0:02:59.1]} 12. O-O-O {[%clk 0:02:49.5]}
12... O-O {[%clk 0:02:59.7]} 13. Kb1 {[%clk 0:02:36.8]} 13... c5 {[%clk
0:02:59.1]} 14. Bc3 {[%clk 0:02:32.7]} 14... Nc6 {[%clk 0:02:57.3]} 15. dxc5
{[%clk 0:02:13.8]} 15... Bxc5 {[%clk 0:02:52.2]} 16. Bxf6 {[%clk 0:02:05.7]}
16... Qxd3 {[%clk 0:02:41.7]} 17. Rxd3 {[%clk 0:02:04.5]} 17... gxf6 {[%clk
0:02:42.2]} 18. Ne4 {[%clk 0:02:03]} 18... Be7 {[%clk 0:02:42.1]} 19. Rd7 {[%clk
0:01:53.9]} 19... f5 {[%clk 0:02:41.9]} 20. Nc3 {[%clk 0:01:47.6]} 20... b6
{[%clk 0:02:39.4]} 21. a3 {[%clk 0:01:40]} 21... Bf6 {[%clk 0:02:36.5]} 22. Nb5
{[%clk 0:01:31]} 22... a6 {[%clk 0:02:29.9]} 23. Nbd4 {[%clk 0:01:19.9]} 23...
Nxd4 {[%clk 0:02:27.2]} 24. Nxd4 {[%clk 0:01:19.7]} 24... Rfd8 {[%clk
0:02:27.5]} 25. Rxd8+ {[%clk 0:01:16.3]} 25... Rxd8 {[%clk 0:02:28.4]} 26. Nf3
{[%clk 0:01:14.8]} 26... e5 {[%clk 0:02:25.3]} 27. c3 {[%clk 0:00:59.9]} 27...
e4 {[%clk 0:02:25.2]} 28. Nd4 {[%clk 0:00:59.8]} 28... Bxd4 {[%clk 0:02:24.8]}
29. cxd4 {[%clk 0:00:59.8]} 29... Rxd4 {[%clk 0:02:24.2]} 30. Kc2 {[%clk
0:00:57.9]} 30... Kg7 {[%clk 0:02:23.9]} 31. Rh3 {[%clk 0:00:52.4]} 31... Kf6
{[%clk 0:02:23.9]} 32. Rc3 {[%clk 0:00:49.8]} 32... Rd6 {[%clk 0:02:23.4]} 33.
Rc7 {[%clk 0:00:48]} 33... f4 {[%clk 0:02:23.1]} 34. Rc8 {[%clk 0:00:45.2]}
34... Kg5 {[%clk 0:02:20.9]} 35. Re8 {[%clk 0:00:44.5]} 35... f5 {[%clk
0:02:20.8]} 36. Re5 {[%clk 0:00:44]} 36... f3 {[%clk 0:02:14.4]} 37. g3 {[%clk
0:00:38.4]} 37... Kg4 {[%clk 0:02:13.8]} 38. b4 {[%clk 0:00:33.3]} 38... Rf6
{[%clk 0:02:10.4]} 39. Kd2 {[%clk 0:00:30.3]} 39... Kxh5 {[%clk 0:02:10.6]} 40.
Ke3 {[%clk 0:00:29.4]} 40... Kg4 {[%clk 0:02:09.4]} 41. a4 {[%clk 0:00:28.4]}
41... Rd6 {[%clk 0:02:07.9]} 0-1

[Event "*** SCC Grand Prix: Titled Tuesday Blitz"]
[Site "Chess.com"]
[Date "2020.07.14"]
[Round "9"]
[White "ChessFunMaker"]
[Black "Gerodot71"]
[Result "0-1"]
[WhiteElo "2261"]
[BlackElo "2421"]
[TimeControl "180+1"]
[EndTime "11:45:14 PDT"]
[Termination "Gerodot71 won on time"]

1. c4 {[%clk 0:03:00.9]} 1... e5 {[%clk 0:02:58.6]} 2. g3 {[%clk 0:03:01.2]}
2... d5 {[%clk 0:02:58]} 3. cxd5 {[%clk 0:02:59]} 3... Qxd5 {[%clk 0:02:58.9]}
4. Nf3 {[%clk 0:02:59.3]} 4... Nc6 {[%clk 0:02:52.1]} 5. Nc3 {[%clk 0:02:59.4]}
5... Qe6 {[%clk 0:02:47.9]} 6. Bg2 {[%clk 0:02:59.2]} 6... Bd7 {[%clk
0:02:47.2]} 7. O-O {[%clk 0:02:46.6]} 7... Bc5 {[%clk 0:02:35.4]} 8. a3 {[%clk
0:02:46.2]} 8... f6 {[%clk 0:02:32.9]} 9. b4 {[%clk 0:02:45.8]} 9... Bb6 {[%clk
0:02:33.3]} 10. d3 {[%clk 0:02:39.5]} 10... O-O-O {[%clk 0:02:32.1]} 11. Bb2
{[%clk 0:02:33.1]} 11... h5 {[%clk 0:02:30.4]} 12. Ne4 {[%clk 0:02:10]} 12...
Qe7 {[%clk 0:02:16.2]} 13. Rc1 {[%clk 0:01:55.8]} 13... Nh6 {[%clk 0:02:01.6]}
14. Nc5 {[%clk 0:01:44.8]} 14... Nf5 {[%clk 0:01:59.6]} 15. Nxd7 {[%clk
0:01:32.7]} 15... Rxd7 {[%clk 0:01:58]} 16. Bh3 {[%clk 0:01:32.2]} 16... g6
{[%clk 0:01:57.2]} 17. e4 {[%clk 0:01:29.7]} 17... Nfd4 {[%clk 0:01:57]} 18.
Nxd4 {[%clk 0:01:26.2]} 18... Nxd4 {[%clk 0:01:56.8]} 19. Bxd4 {[%clk
0:01:12.7]} 19... Bxd4 {[%clk 0:01:57.7]} 20. Qc2 {[%clk 0:01:01.9]} 20... Kb8
{[%clk 0:01:56.5]} 21. Bxd7 {[%clk 0:00:59.6]} 21... Qxd7 {[%clk 0:01:57.4]} 22.
Qc4 {[%clk 0:00:45.6]} 22... h4 {[%clk 0:01:56.9]} 23. Rc2 {[%clk 0:00:18.2]}
23... hxg3 {[%clk 0:01:55.1]} 24. hxg3 {[%clk 0:00:16.7]} 24... Qh3 {[%clk
0:01:54.6]} 25. Qxc7+ {[%clk 0:00:13.3]} 25... Ka8 {[%clk 0:01:53.6]} 26. Qh7
{[%clk 0:00:02.5]} 26... Qxh7 {[%clk 0:01:50.4]} 0-1

[Event "*** SCC Grand Prix: Titled Tuesday Blitz"]
[Site "Chess.com"]
[Date "2020.07.14"]
[Round "9"]
[White "diamonds13"]
[Black "Tolya2"]
[Result "1-0"]
[WhiteElo "2247"]
[BlackElo "2371"]
[TimeControl "180+1"]
[EndTime "11:45:14 PDT"]
[Termination "diamonds13 won by resignation"]

1. d4 {[%clk 0:03:00.9]} 1... d5 {[%clk 0:02:59]} 2. c4 {[%clk 0:03:01.4]} 2...
dxc4 {[%clk 0:02:58.2]} 3. e3 {[%clk 0:03:00.3]} 3... Nf6 {[%clk 0:02:56.9]} 4.
Nf3 {[%clk 0:02:56.3]} 4... e6 {[%clk 0:02:57.8]} 5. Bxc4 {[%clk 0:02:56.7]}
5... a6 {[%clk 0:02:56.5]} 6. O-O {[%clk 0:02:57]} 6... c5 {[%clk 0:02:56.4]} 7.
Qe2 {[%clk 0:02:52.3]} 7... b5 {[%clk 0:02:55.3]} 8. Bd3 {[%clk 0:02:52.1]} 8...
Nbd7 {[%clk 0:02:54.8]} 9. Rd1 {[%clk 0:02:51.1]} 9... Bb7 {[%clk 0:02:53.7]}
10. dxc5 {[%clk 0:02:50.6]} 10... Bxc5 {[%clk 0:02:51.6]} 11. a3 {[%clk
0:02:49.3]} 11... O-O {[%clk 0:02:48.6]} 12. b4 {[%clk 0:02:49.3]} 12... Be7
{[%clk 0:02:44.9]} 13. Bb2 {[%clk 0:02:49.8]} 13... Qb8 {[%clk 0:02:42.2]} 14.
Nbd2 {[%clk 0:02:46]} 14... Nb6 {[%clk 0:02:39.1]} 15. Nb3 {[%clk 0:02:45.3]}
15... Na4 {[%clk 0:02:38.4]} 16. Be5 {[%clk 0:02:44]} 16... Qa7 {[%clk
0:02:37.1]} 17. Na5 {[%clk 0:02:42.1]} 17... Rac8 {[%clk 0:02:31.8]} 18. Ng5
{[%clk 0:02:38.2]} 18... h6 {[%clk 0:02:28.5]} 19. Nh3 {[%clk 0:02:26.9]} 19...
Nd7 {[%clk 0:02:19.5]} 20. Bh7+ {[%clk 0:02:22.4]} 20... Kxh7 {[%clk 0:02:18]}
21. Rxd7 {[%clk 0:02:21.9]} 21... Nc5 {[%clk 0:01:38.2]} 22. Rxe7 {[%clk
0:02:03.9]} 22... Qb6 {[%clk 0:01:38]} 23. bxc5 {[%clk 0:01:59.7]} 23... Qxa5
{[%clk 0:01:37.2]} 24. Rxb7 {[%clk 0:01:59.1]} 24... Rxc5 {[%clk 0:01:37.7]} 25.
Bd4 {[%clk 0:01:55.7]} 25... Rc6 {[%clk 0:01:33.8]} 26. Qg4 {[%clk 0:01:45]}
26... g6 {[%clk 0:01:24.5]} 27. Ng5+ {[%clk 0:01:35.7]} 27... Kg8 {[%clk
0:01:18.8]} 28. Qh4 {[%clk 0:01:24.7]} 28... Qd2 {[%clk 0:01:17.1]} 29. h3
{[%clk 0:01:08.5]} 29... e5 {[%clk 0:01:06.7]} 30. Qxh6 {[%clk 0:01:03]} 1-0

[Event "*** SCC Grand Prix: Titled Tuesday Blitz"]
[Site "Chess.com"]
[Date "2020.07.14"]
[Round "9"]
[White "Flawless_Fighter"]
[Black "MIJUAREZ"]
[Result "1-0"]
[WhiteElo "2557"]
[BlackElo "2386"]
[TimeControl "180+1"]
[EndTime "11:45:15 PDT"]
[Termination "Flawless_Fighter won on time"]

1. e4 {[%clk 0:03:00.9]} 1... c5 {[%clk 0:02:59.9]} 2. Nf3 {[%clk 0:03:01.1]}
2... e6 {[%clk 0:03:00.3]} 3. g3 {[%clk 0:02:59.8]} 3... d6 {[%clk 0:02:48.6]}
4. Bg2 {[%clk 0:02:58.8]} 4... Qc7 {[%clk 0:02:49.3]} 5. O-O {[%clk 0:02:58]}
5... Nf6 {[%clk 0:02:45.3]} 6. Re1 {[%clk 0:02:57.4]} 6... Nc6 {[%clk
0:02:44.6]} 7. c3 {[%clk 0:02:57]} 7... e5 {[%clk 0:02:38.7]} 8. d4 {[%clk
0:02:56.7]} 8... Bg4 {[%clk 0:02:37.6]} 9. d5 {[%clk 0:02:53.7]} 9... Nb8 {[%clk
0:02:31.8]} 10. h3 {[%clk 0:02:54.1]} 10... Bxf3 {[%clk 0:02:28.9]} 11. Qxf3
{[%clk 0:02:55]} 11... Be7 {[%clk 0:02:28.6]} 12. c4 {[%clk 0:02:55.5]} 12...
O-O {[%clk 0:02:28]} 13. Nc3 {[%clk 0:02:56.1]} 13... a6 {[%clk 0:02:27.1]} 14.
g4 {[%clk 0:02:56]} 14... Qd7 {[%clk 0:02:03.4]} 15. g5 {[%clk 0:02:53.8]} 15...
Ne8 {[%clk 0:02:03.3]} 16. h4 {[%clk 0:02:54.4]} 16... Nc7 {[%clk 0:02:02.8]}
17. Bh3 {[%clk 0:02:54.6]} 17... Qe8 {[%clk 0:02:00.7]} 18. a4 {[%clk
0:02:52.3]} 18... f6 {[%clk 0:02:00]} 19. Qg3 {[%clk 0:02:51.4]} 19... fxg5
{[%clk 0:01:59.4]} 20. hxg5 {[%clk 0:02:46.2]} 20... Kh8 {[%clk 0:01:56]} 21.
Kg2 {[%clk 0:02:44.6]} 21... Qf7 {[%clk 0:01:53.3]} 22. Be3 {[%clk 0:02:44.5]}
22... Rd8 {[%clk 0:01:36.9]} 23. Rh1 {[%clk 0:02:40.9]} 23... g6 {[%clk
0:01:28.8]} 24. Raf1 {[%clk 0:02:33.9]} 24... Nd7 {[%clk 0:01:28.3]} 25. f4
{[%clk 0:02:23.4]} 25... exf4 {[%clk 0:01:27.6]} 26. Rxf4 {[%clk 0:02:24.3]}
26... Qg7 {[%clk 0:01:27.3]} 27. Bxd7 {[%clk 0:02:24.9]} 27... Rxd7 {[%clk
0:01:26.6]} 28. Rfh4 {[%clk 0:02:24.5]} 28... Bf8 {[%clk 0:01:23.9]} 29. Rxh7+
{[%clk 0:02:13.6]} 29... Qxh7 {[%clk 0:01:22.7]} 30. Rxh7+ {[%clk 0:02:14.5]}
30... Rxh7 {[%clk 0:01:21.7]} 31. e5 {[%clk 0:02:10.9]} 31... dxe5 {[%clk
0:01:16.2]} 32. Ne4 {[%clk 0:02:04.4]} 32... Kg8 {[%clk 0:01:17.1]} 33. Nf6+
{[%clk 0:02:03.1]} 1-0

[Event "*** SCC Grand Prix: Titled Tuesday Blitz"]
[Site "Chess.com"]
[Date "2020.07.14"]
[Round "9"]
[White "SanchezKelvin"]
[Black "sertalzin"]
[Result "1-0"]
[WhiteElo "2405"]
[BlackElo "1950"]
[TimeControl "180+1"]
[EndTime "11:45:16 PDT"]
[Termination "SanchezKelvin won by resignation"]

1. d4 {[%clk 0:03:00.9]} 1... d5 {[%clk 0:02:59.1]} 2. c4 {[%clk 0:03:00.7]}
2... c6 {[%clk 0:02:58.6]} 3. Nf3 {[%clk 0:03:00.1]} 3... Nf6 {[%clk 0:02:55]}
4. Nc3 {[%clk 0:02:59.7]} 4... e6 {[%clk 0:02:55.1]} 5. Bg5 {[%clk 0:02:57.6]}
5... h6 {[%clk 0:02:52.2]} 6. Bxf6 {[%clk 0:02:56.6]} 6... Qxf6 {[%clk
0:02:50.8]} 7. e3 {[%clk 0:02:57.5]} 7... Nd7 {[%clk 0:02:50.3]} 8. Qc2 {[%clk
0:02:54.5]} 8... dxc4 {[%clk 0:02:38.2]} 9. Bxc4 {[%clk 0:02:50.9]} 9... g6
{[%clk 0:02:37.7]} 10. O-O-O {[%clk 0:02:50]} 10... Bg7 {[%clk 0:02:36.9]} 11.
Ne4 {[%clk 0:02:49.5]} 11... Qe7 {[%clk 0:02:35.9]} 12. h4 {[%clk 0:02:49.2]}
12... O-O {[%clk 0:02:33.2]} 13. h5 {[%clk 0:02:48.7]} 13... g5 {[%clk
0:02:32.3]} 14. Bd3 {[%clk 0:02:47.7]} 14... Nb6 {[%clk 0:01:49]} 15. Kb1 {[%clk
0:02:44.2]} 15... Nd5 {[%clk 0:01:48]} 16. a3 {[%clk 0:02:29.1]} 16... b5 {[%clk
0:01:46.3]} 17. Qxc6 {[%clk 0:02:26.3]} 17... Bd7 {[%clk 0:01:42.5]} 18. Qd6
{[%clk 0:02:24.4]} 18... Qd8 {[%clk 0:01:34.1]} 19. Nc5 {[%clk 0:02:23.9]} 19...
Nb6 {[%clk 0:01:09.6]} 20. Ne5 {[%clk 0:02:15.2]} 20... Bc8 {[%clk 0:00:58.9]}
21. Qxd8 {[%clk 0:02:11.5]} 21... Rxd8 {[%clk 0:00:58.1]} 22. Bxb5 {[%clk
0:02:07.8]} 22... a6 {[%clk 0:00:51.3]} 23. Bc6 {[%clk 0:02:06.9]} 23... Rb8
{[%clk 0:00:49]} 24. Bf3 {[%clk 0:02:00.5]} 24... Nd5 {[%clk 0:00:44.4]} 25. Nc6
{[%clk 0:01:57.2]} 25... Nc3+ {[%clk 0:00:43.6]} 26. Kc2 {[%clk 0:01:54.9]}
26... Nxd1 {[%clk 0:00:44.5]} 27. Rxd1 {[%clk 0:01:54.6]} 27... Bd7 {[%clk
0:00:19]} 28. Nxb8 {[%clk 0:01:48.1]} 28... Rxb8 {[%clk 0:00:17]} 29. Nxd7
{[%clk 0:01:46.7]} 1-0

[Event "*** SCC Grand Prix: Titled Tuesday Blitz"]
[Site "Chess.com"]
[Date "2020.07.14"]
[Round "9"]
[White "Chessdemon2019"]
[Black "poppy73"]
[Result "1-0"]
[WhiteElo "2365"]
[BlackElo "2239"]
[TimeControl "180+1"]
[EndTime "11:45:19 PDT"]
[Termination "Chessdemon2019 won by resignation"]

1. e4 {[%clk 0:03:00.9]} 1... c5 {[%clk 0:02:59.7]} 2. Nf3 {[%clk 0:03:00.9]}
2... d6 {[%clk 0:03:00.1]} 3. d4 {[%clk 0:03:00.9]} 3... cxd4 {[%clk 0:03:01]}
4. Nxd4 {[%clk 0:03:01.7]} 4... Nf6 {[%clk 0:03:01.5]} 5. f3 {[%clk 0:03:02.1]}
5... e5 {[%clk 0:02:59.8]} 6. Nb3 {[%clk 0:03:01.9]} 6... Be6 {[%clk 0:02:59.8]}
7. c4 {[%clk 0:03:01.8]} 7... Qc7 {[%clk 0:03:00.2]} 8. Qd3 {[%clk 0:02:58]}
8... Nbd7 {[%clk 0:02:56.4]} 9. Nc3 {[%clk 0:02:56.1]} 9... Be7 {[%clk
0:02:53.8]} 10. Be3 {[%clk 0:02:55.8]} 10... Nh5 {[%clk 0:02:52.2]} 11. Rc1
{[%clk 0:02:44.4]} 11... Nf4 {[%clk 0:02:50.2]} 12. Qd2 {[%clk 0:02:44.4]} 12...
Ng6 {[%clk 0:02:35.3]} 13. Nd5 {[%clk 0:02:41.9]} 13... Bxd5 {[%clk 0:02:32.8]}
14. cxd5 {[%clk 0:02:41.8]} 14... Qd8 {[%clk 0:02:33.2]} 15. Na5 {[%clk
0:02:40.7]} 15... Rc8 {[%clk 0:02:05.1]} 16. Nxb7 {[%clk 0:02:32.9]} 16... Rxc1+
{[%clk 0:02:04.2]} 17. Qxc1 {[%clk 0:02:33.1]} 17... Qb8 {[%clk 0:02:04.7]} 18.
Qc6 {[%clk 0:02:30.1]} 18... Nf8 {[%clk 0:01:41.8]} 19. Bb5 {[%clk 0:02:26.9]}
19... f6 {[%clk 0:01:40]} 20. O-O {[%clk 0:02:25.7]} 20... Kf7 {[%clk 0:01:40]}
21. Rc1 {[%clk 0:02:15.1]} 21... h5 {[%clk 0:01:25.9]} 22. Qc7 {[%clk
0:02:00.1]} 22... Qxc7 {[%clk 0:01:15.2]} 23. Rxc7 {[%clk 0:01:59.8]} 23... Ke8
{[%clk 0:01:09.5]} 24. Bxa7 {[%clk 0:01:56.9]} 24... g5 {[%clk 0:01:07.6]} 25.
Be3 {[%clk 0:01:43.8]} 25... Rh7 {[%clk 0:01:07.2]} 26. a4 {[%clk 0:01:42.1]}
26... Bd8 {[%clk 0:01:03.8]} 27. Rc8 {[%clk 0:01:42.4]} 27... Kf7 {[%clk
0:00:53.6]} 28. Nxd8+ {[%clk 0:01:41.7]} 28... Kg6 {[%clk 0:00:51.6]} 29. a5
{[%clk 0:01:38.4]} 29... Nc5 {[%clk 0:00:49.8]} 30. Bxc5 {[%clk 0:01:37.2]}
30... dxc5 {[%clk 0:00:50.7]} 31. Rxc5 {[%clk 0:01:37.4]} 31... Ra7 {[%clk
0:00:50.2]} 32. Nc6 {[%clk 0:01:36.8]} 32... Ra8 {[%clk 0:00:48.9]} 33. a6
{[%clk 0:01:36.5]} 33... Nd7 {[%clk 0:00:48.9]} 34. Rc3 {[%clk 0:01:35.3]} 34...
Nb6 {[%clk 0:00:46.9]} 35. a7 {[%clk 0:01:33.7]} 35... Kf7 {[%clk 0:00:46.9]}
36. Ba6 {[%clk 0:01:33.5]} 36... Ke8 {[%clk 0:00:43.2]} 37. Bb7 {[%clk
0:01:33.6]} 1-0